bitfinex-derivatives/quotes_BNBF0:USTF0_20250406
["timestamp","ask_amount","ask_price","bid_price","bid_amount"]
[1743932092169,0.58020174,589.23,588.44,0.28616291]
[1743932092370,0.58020174,589.22,588.4,0.28616291]
[1743932092575,0.58020174,589.21,588.42,0.29542474]
[1743932092775,0.58020174,589.26,588.43,0.28616291]
[1743932092977,0.33940299,589.27,588.43,0.28616291]
[1743932093375,0.33940299,589.27,588.47,1.26919122]
[1743932093575,0.33940299,589.27,588.48,0.28616291]
[1743932094174,0.33940299,589.27,588.47,1.26919122]
[1743932094375,0.33940299,589.27,588.48,0.28615044]
[1743932095275,0.33940299,589.27,588.47,1.26919122]
[1743932095478,0.33940299,589.27,588.48,0.28616235]
[1743932099583,0.29534325,589.36,588.48,0.28616235]
[1743932100079,0.29534325,589.36,588.47,1.56453447]
[1743932100281,0.29534325,589.36,588.48,0.28605149]
[1743932101082,0.58020174,589.35,588.48,0.28605149]
[1743932101286,0.58020174,589.34,588.48,0.28605149]
[1743932101482,0.58020174,589.33,588.48,0.28605149]
[1743932101683,0.58020174,589.32,588.48,0.28605149]
[1743932101883,0.58020174,589.31,588.48,0.28605149]
[1743932102083,0.5801689,589.3,588.48,0.28605149]
[1743932102280,0.5801689,589.29,588.48,0.28605149]
[1743932102482,0.5801689,589.28,588.48,0.28605149]
[1743932102684,0.5801689,589.27,588.48,0.28605149]
[1743932102881,0.58020148,589.26,588.48,0.28605149]
[1743932103085,0.58020148,589.25,588.48,0.28605149]
[1743932103282,0.29534701,589.38,588.48,0.28605149]
[1743932103484,0.58024271,589.37,588.48,0.28605149]
[1743932103688,0.58024271,589.36,588.53,1.26919122]
[1743932103882,0.58023814,589.35,588.54,0.28605149]
[1743932104087,0.58023814,589.34,588.55,0.28607925]
[1743932104285,0.58023814,589.33,588.54,0.28607925]
[1743932104487,0.58023814,589.32,588.55,0.28607925]
[1743932104683,0.58023814,589.31,588.54,0.28607925]
[1743932104885,0.58023814,589.3,588.55,0.28607925]
[1743932105085,0.58023814,589.29,588.54,0.28607925]
[1743932105289,0.58023814,589.28,588.55,0.28607925]
[1743932105583,0.58023814,589.27,588.56,0.28607925]
[1743932105787,0.58023814,589.26,588.5,0.28607925]
[1743932106087,0.58023814,589.25,588.51,0.28607925]
[1743932106281,0.58023814,589.24,588.5,0.28607925]
[1743932106485,0.58023814,589.23,588.51,0.28607925]
[1743932106683,0.58023814,589.22,588.5,0.28607925]
[1743932106887,0.58023814,589.21,588.51,0.28607925]
[1743932107088,0.58023814,589.2,588.5,0.28607925]
[1743932107288,0.58023814,589.19,588.51,0.28607925]
[1743932107485,1.52672236,590.25,588.52,0.28607925]
[1743932107685,1.52672236,590.1,588.4,1.26919122]
[1743932107989,0.33893709,590.08,588.41,0.28611487]
[1743932108188,0.89255849,590.07,588.41,0.28611487]
[1743932108390,0.89255849,590.06,588.41,0.28611487]
[1743932108589,0.89255849,590.05,588.42,0.29531318]
[1743932108885,0.89255849,590.04,588.43,0.28611487]
[1743932109190,0.33897156,590.02,588.43,0.28611487]
[1743932109489,0.58055999,590.01,588.42,0.29531318]
[1743932109691,0.33898879,589.99,588.43,0.28612807]
[1743932109890,0.8925588,589.98,588.43,0.28612807]
[1743932110090,0.33900603,589.96,588.43,0.28612807]
[1743932110286,0.58055999,589.95,588.43,0.28612807]
[1743932110491,0.33902327,589.93,588.44,0.28612807]
[1743932110692,0.8925588,589.92,588.45,0.28612807]
[1743932110990,0.33904051,589.9,588.46,0.28612807]
[1743932111191,0.89304031,589.89,588.47,0.28611223]
[1743932111390,0.89304031,589.88,588.44,0.28611223]
[1743932111589,0.3390635,589.86,588.44,0.28611223]
[1743932111793,0.89304031,589.85,588.44,0.28611223]
[1743932112093,0.3390635,589.86,588.44,0.28611223]
[1743932112094,0.33908075,589.83,588.44,0.28611223]
[1743932112294,0.89304031,589.82,588.44,0.28611223]
[1743932112496,0.33909799,589.8,588.44,0.28611223]
[1743932112795,0.89304092,589.79,588.45,0.286113]
[1743932113094,0.89304092,589.78,588.46,0.286113]
[1743932113292,0.58104195,589.77,588.46,0.286113]
[1743932113497,0.58104195,589.77,588.15,1.52302947]
[1743932113498,0.89304092,589.76,588.47,0.286113]
[1743932113697,0.89304092,589.75,588.48,0.286113]
[1743932113992,0.29534826,589.77,588.44,0.29534826]
[1743932113993,0.33913824,589.73,588.49,0.286113]
[1743932114190,0.89304092,589.72,588.45,0.286113]
[1743932114395,1.23219067,589.71,588.46,0.286113]
[1743932114695,1.23219067,589.71,588.44,0.29534826]
[1743932114696,1.23219642,589.7,588.47,0.286113]
[1743932114997,1.23220217,589.69,588.48,0.286113]
[1743932115198,1.23220792,589.68,588.45,0.286113]
[1743932115392,1.23221367,589.67,588.46,0.286113]
[1743932115593,1.23221942,589.66,588.45,0.286113]
[1743932115797,1.23222518,589.65,588.46,0.286113]
[1743932115994,0.58104195,589.64,588.44,0.29534826]
[1743932116197,0.58104195,589.63,588.45,0.28610172]
[1743932116397,0.33918426,589.65,588.45,0.28610172]
[1743932116398,0.58104195,589.62,588.45,1.55529294]
[1743932116594,0.92024922,589.61,588.46,0.28610172]
[1743932116894,0.92025497,589.6,588.46,0.28610172]
[1743932117198,0.92026072,589.59,588.46,0.28610172]
[1743932117397,0.58104195,589.58,588.46,0.28610172]
[1743932117597,0.58104195,589.57,588.46,0.28610172]
[1743932117795,0.92027799,589.56,588.47,0.28610994]
[1743932118101,0.92028374,589.55,588.48,0.28610994]
[1743932118298,0.92028949,589.54,588.46,0.28610994]
[1743932118498,0.92029525,589.53,588.46,0.28610994]
[1743932118699,0.58104195,589.52,588.48,1.26919122]
[1743932118899,0.58104195,589.51,588.49,0.28610994]
[1743932119096,0.58104195,589.5,588.49,0.28610994]
[1743932119302,0.58104195,589.49,588.49,0.28610994]
[1743932119501,0.58104195,589.48,588.5,0.2861108]
[1743932119702,0.58104195,589.47,588.49,0.2861108]
[1743932119896,0.58104195,589.46,588.49,0.2861108]
[1743932120102,0.92034129,589.45,588.49,0.2861108]
[1743932120302,0.58132258,589.44,588.49,0.2861108]
[1743932120502,0.58132258,589.43,588.49,0.2861108]
[1743932120698,0.58132258,589.42,588.49,0.2861108]
[1743932121001,0.58132258,589.41,588.5,0.28616179]
[1743932121302,0.58132258,589.4,588.51,0.28616179]
[1743932121501,0.58132258,589.39,588.42,0.28616179]
[1743932121803,0.58132258,589.38,588.43,0.28616179]
[1743932122002,0.58132258,589.37,588.42,0.28616179]
[1743932122200,0.58132258,589.36,588.43,0.28616179]
[1743932122499,0.58132258,589.35,588.42,0.28616179]
[1743932122702,0.58132258,589.34,588.43,0.28616179]
[1743932122896,0.58132258,589.33,588.42,0.28616179]
[1743932123099,0.58132258,589.32,588.42,0.28616179]
[1743932123298,0.58132258,589.31,588.42,0.28616179]
[1743932123499,0.58132258,589.3,588.42,0.28616179]
[1743932123799,0.58132258,589.29,588.42,0.28616179]
[1743932123998,0.58132258,589.28,588.42,0.28616179]
[1743932124197,0.58132258,589.27,588.42,0.28616179]
[1743932124402,0.58132258,589.26,588.42,0.28616179]
[1743932124602,0.58132258,589.25,588.42,0.28616179]
[1743932124799,0.58132258,589.24,588.42,0.28616179]
[1743932125001,0.58132258,589.23,588.42,0.28616179]
[1743932125198,0.33929934,589.45,588.42,0.28616179]
[1743932125199,0.58132258,589.22,588.42,0.28616179]
[1743932125403,0.58132258,589.21,588.42,0.28616179]
[1743932125603,0.58132258,589.2,588.42,0.28616179]
[1743932125798,0.58140944,589.19,588.42,0.28616179]
[1743932126002,0.58140944,589.18,588.42,0.28616179]
[1743932126203,0.58140944,589.17,588.42,0.28616179]
[1743932126401,0.58140944,589.16,588.44,1.26919122]
[1743932126701,0.58140944,589.15,588.45,0.28616179]
[1743932126904,0.58140944,589.14,588.45,0.28616179]
[1743932127105,0.58140944,589.13,588.45,0.28616179]
[1743932127407,0.58140944,589.12,588.44,1.26919122]
[1743932127607,0.29542223,589.25,588.45,0.28622889]
[1743932127808,0.58141529,589.24,588.45,0.28622889]
[1743932128005,0.58141529,589.23,588.45,0.28622889]
[1743932128206,0.58141529,589.22,588.45,0.28622889]
[1743932128407,0.58141529,589.21,588.45,0.28622889]
[1743932128703,0.58141529,589.2,588.33,0.28622889]
[1743932128908,0.58141529,589.19,588.34,0.28622889]
[1743932129108,0.58141529,589.18,588.33,0.28622889]
[1743932129308,0.58141529,589.17,588.33,0.28622889]
[1743932129509,0.58141529,589.16,588.35,0.29542348]
[1743932129704,0.58141529,589.15,588.36,0.28622889]
[1743932129908,0.58141529,589.14,588.36,0.28622889]
[1743932130104,0.58141529,589.13,588.36,0.28622889]
[1743932130308,0.58141529,589.12,588.36,0.28622889]
[1743932130509,0.58141529,589.24,588.36,0.28622889]
[1743932130708,0.58141529,589.23,588.36,0.28622889]
[1743932130907,0.58141529,589.24,588.36,0.28622889]
[1743932131107,0.58141529,589.23,588.36,0.28622889]
[1743932131305,0.58141529,589.44,588.34,0.28622889]
[1743932131510,0.58141529,589.43,588.35,0.29544731]
[1743932131809,0.58141529,589.42,588.36,0.28622889]
[1743932132104,0.58141529,589.41,588.36,0.28622889]
[1743932132411,0.58141529,589.4,588.35,0.29544731]
[1743932132610,0.58141529,589.39,588.36,0.28619577]
[1743932132910,0.58141529,589.38,588.36,0.28619577]
[1743932133105,0.58141529,589.37,588.36,0.28619577]
[1743932133308,0.58141529,589.36,588.36,0.28619577]
[1743932133507,0.58141529,589.35,588.36,0.28619577]
[1743932133708,0.58141529,589.34,588.36,0.28619577]
[1743932133907,0.58141529,589.33,588.36,0.28619577]
[1743932134110,0.58141529,589.32,588.34,1.26919122]
[1743932134313,0.58141529,589.31,588.35,0.2861888]
[1743932134606,0.58141529,589.3,588.35,0.2861888]
[1743932134807,0.58141529,589.29,588.35,0.2861888]
[1743932135008,0.58141529,589.28,588.35,0.2861888]
[1743932135209,0.58141529,589.27,588.35,1.55538002]
[1743932135513,0.58141529,589.26,588.36,0.2861888]
[1743932135714,0.58141529,589.25,588.36,0.2861888]
[1743932135912,0.58141529,589.24,588.36,0.2861888]
[1743932136212,0.58141529,589.26,588.36,0.2861888]
[1743932136409,0.29542097,589.27,588.36,0.2861888]
[1743932136410,0.58141529,589.25,588.36,0.2861888]
[1743932136608,0.58141529,589.24,588.36,0.2861888]
[1743932136908,0.58141529,589.23,588.36,0.2861888]
[1743932137113,0.58141529,589.22,588.36,0.2861888]
[1743932137309,0.58141529,589.21,588.36,0.2861888]
[1743932137513,0.58141529,589.2,588.49,1.26919122]
[1743932137713,0.58141529,589.26,588.5,0.2861888]
[1743932137913,0.58141529,589.25,588.5,0.2861888]
[1743932138113,0.58141529,589.24,588.5,0.2861888]
[1743932138309,0.58141529,589.23,588.5,0.2861888]
[1743932138513,0.58141529,589.22,588.5,0.2861888]
[1743932138714,0.58127187,589.21,588.5,0.2861888]
[1743932138911,0.58127187,589.2,588.5,0.2861888]
[1743932139109,0.58127187,589.19,588.49,1.26919122]
[1743932139313,0.58127187,589.18,588.5,0.28625606]
[1743932139515,0.58127187,589.17,588.5,0.28625606]
[1743932139713,0.58127187,589.16,588.5,0.28625606]
[1743932139913,0.58127187,589.15,588.51,0.28625606]
[1743932140109,0.58127187,589.14,588.52,0.28625606]
[1743932140314,0.58127187,589.13,588.45,0.28625606]
[1743932140511,0.58118969,589.12,588.46,0.28625606]
[1743932140712,0.58118969,589.11,588.46,0.28625606]
[1743932140912,0.58118969,589.1,588.47,0.28625606]
[1743932141115,0.58118969,589.09,588.45,0.28625606]
[1743932141315,0.58118969,589.08,588.46,0.28625606]
[1743932141511,0.2954285,589.17,588.45,0.28625606]
[1743932141716,0.58115703,589.16,588.45,0.28625606]
[1743932142016,0.58115703,589.15,588.45,0.28625606]
[1743932142217,0.58115703,589.14,588.49,1.26919122]
[1743932142419,0.5811275,589.13,588.5,0.2862469]
[1743932142716,0.5811275,589.12,588.5,0.2862469]
[1743932142911,0.5811275,589.11,588.5,0.2862469]
[1743932143115,0.5811275,589.1,588.5,0.2862469]
[1743932143316,0.5811275,589.09,588.5,0.2862469]
[1743932143516,0.5811275,589.08,588.5,0.2862469]
[1743932143712,0.29542223,589.17,588.5,0.2862469]
[1743932143713,0.5811275,589.07,588.5,0.2862469]
[1743932143913,0.29542223,589.17,588.5,0.2862469]
[1743932144112,0.58110371,589.16,588.5,0.2862469]
[1743932144315,0.58110371,589.15,588.5,0.2862469]
[1743932144519,0.58110371,589.14,588.5,0.2862469]
[1743932144817,0.58110371,589.13,588.5,0.2862469]
[1743932145017,0.58110371,589.12,588.5,0.2862469]
[1743932145219,0.58110371,589.11,588.5,0.2862469]
[1743932145417,0.58110371,589.1,588.5,0.2862469]
[1743932145615,0.58110371,589.09,588.49,1.26919122]
[1743932145821,0.58110371,589.08,588.5,0.28628296]
[1743932146019,0.58110371,589.07,588.5,0.28628296]
[1743932146220,0.33929934,589.45,588.5,0.28628296]
[1743932146517,0.29545734,589.17,588.5,0.28628296]
[1743932146715,0.58100584,589.16,588.5,0.28628296]
[1743932146918,0.58100584,589.15,588.5,0.28628296]
[1743932147117,0.58100584,589.14,588.39,0.28628296]
[1743932147319,0.58100584,589.13,588.39,0.28628296]
[1743932147620,0.58100584,589.12,588.39,0.28628296]
[1743932147820,0.58100584,589.11,588.39,0.28628296]
[1743932148017,0.58100584,589.1,588.4,0.28628131]
[1743932148317,0.58100584,589.09,588.41,0.28628131]
[1743932148516,0.58100584,589.08,588.39,0.28628131]
[1743932148718,0.29543602,589.17,588.4,0.28628131]
[1743932148920,0.58093916,589.16,588.39,0.28628131]
[1743932149118,0.58093916,589.15,588.4,0.28628131]
[1743932149321,0.58093916,589.15,588.38,1.26919122]
[1743932149322,0.58093916,589.14,588.39,0.28628131]
[1743932149521,0.33929934,589.45,588.4,0.28628131]
[1743932149522,0.58093916,589.13,588.4,0.28628131]
[1743932149723,0.58093916,589.12,588.34,0.28628131]
[1743932149917,0.58093916,589.11,588.34,0.28628131]
[1743932150122,0.58093916,589.1,588.34,0.28628131]
[1743932150321,0.58093916,589.09,588.34,0.28628131]
[1743932150519,0.58093916,589.08,588.34,0.28628131]
[1743932150716,0.29547114,589.17,588.34,0.28628131]
[1743932150917,0.58090351,589.16,588.34,0.28628131]
[1743932151118,0.58090351,589.15,588.34,0.28628131]
[1743932151322,0.58090351,589.14,588.34,0.28628131]
[1743932151620,0.58088497,589.13,588.34,0.28628131]
[1743932151825,0.58088497,589.12,588.34,0.28628131]
[1743932152126,0.58088497,589.11,588.34,0.28628131]
[1743932152325,0.58088497,589.1,588.34,0.28628131]
[1743932152519,0.58088497,589.09,588.35,0.28628131]
[1743932152722,0.58088497,589.08,588.34,0.28628131]
[1743932152920,0.33929934,589.45,588.34,0.28628131]
[1743932153120,0.58086879,589.44,588.34,0.28628131]
[1743932153323,0.92017964,589.43,588.34,0.28628131]
[1743932153524,0.9201854,589.42,588.34,0.28628131]
[1743932153725,0.92019116,589.41,588.34,0.28628131]
[1743932153921,0.29537333,589.44,588.33,0.29548494]
[1743932153922,0.92019692,589.4,588.35,0.2862836]
[1743932154121,0.92020267,589.39,588.36,0.2862836]
[1743932154425,0.92020843,589.38,588.37,0.2862836]
[1743932154725,0.58086879,589.37,588.38,0.2862836]
[1743932154926,0.58086879,589.36,588.34,0.2862836]
[1743932155128,0.58083963,589.35,588.35,0.2862836]
[1743932155427,0.58083963,589.34,588.36,0.2862836]
[1743932155627,0.58083963,589.33,588.34,0.2862836]
[1743932155926,0.58083963,589.32,588.34,0.2862836]
[1743932156122,0.58083963,589.31,588.34,0.2862836]
[1743932156321,0.58083963,589.3,588.34,0.2862836]
[1743932156623,0.58083963,589.29,588.34,0.2862836]
[1743932156828,0.58083963,589.28,588.34,0.2862836]
[1743932157022,0.58083963,589.27,588.33,0.29545107]
[1743932157227,0.58083963,589.26,588.35,0.28630597]
[1743932157427,0.58083963,589.25,588.36,0.28630597]
[1743932157727,0.58083963,589.24,588.37,0.28630597]
[1743932157928,0.58083963,589.23,588.34,0.28630597]
[1743932158129,0.58083963,589.22,588.38,0.28630597]
[1743932158330,0.58083963,589.21,588.39,0.28630597]
[1743932158531,0.58083963,589.2,588.33,0.28630597]
[1743932158829,0.58083963,589.19,588.34,0.28630597]
[1743932159028,0.58083963,589.18,588.33,0.28630597]
[1743932159231,0.58083963,589.17,588.34,0.28630597]
[1743932159426,0.58083963,589.16,588.33,0.5817583]
[1743932159727,0.58083963,589.15,588.34,0.28630597]
[1743932159931,0.58083963,589.14,588.34,0.28630597]
[1743932160133,0.58083963,589.13,588.34,0.28630597]
[1743932160331,0.58083963,589.16,588.34,0.28630597]
[1743932160532,0.58083963,589.15,588.34,0.28630597]
[1743932160728,0.58083963,589.14,588.34,0.28630597]
[1743932160933,0.58083963,589.13,588.34,0.28630597]
[1743932161127,0.58083963,589.12,588.34,0.28630597]
[1743932161328,0.58083963,589.11,588.33,0.29548118]
[1743932161629,0.58083963,589.1,588.34,0.28627754]
[1743932161829,0.58109266,589.09,588.34,0.28627754]
[1743932162129,0.58109266,589.08,588.34,0.28627754]
[1743932162333,0.58109266,589.07,588.34,0.28627754]
[1743932162630,0.58109266,589.06,588.34,0.28627754]
[1743932162935,0.29548118,589.17,588.34,0.28627754]
[1743932163133,0.58115882,589.16,588.34,0.28627754]
[1743932163332,0.5812103,589.15,588.34,0.28627754]
[1743932163629,0.5812103,589.14,588.34,0.28627754]
[1743932163927,0.5812103,589.13,588.34,0.28627754]
[1743932164132,0.5812103,589.12,588.34,0.28627754]
[1743932164334,0.5812103,589.11,588.3,0.28627754]
[1743932164531,0.5812103,589.1,588.31,0.28627754]
[1743932164731,0.5812103,589.09,588.32,0.28627754]
[1743932164931,0.5812103,589.08,588.26,0.28627754]
[1743932165131,0.5812103,589.07,588.27,0.28627754]
[1743932165331,0.5812103,589.06,588.27,0.29546111]
[1743932165533,0.5812103,589.05,588.28,0.28627754]
[1743932165732,0.29546111,589.17,588.28,0.28627754]
[1743932165938,0.58133214,589.16,588.28,0.28627754]
[1743932166238,0.58133214,589.15,588.28,0.28627754]
[1743932166439,0.58133214,589.14,588.27,0.29546111]
[1743932166639,0.58133214,589.13,588.28,0.28614132]
[1743932166838,0.58133214,589.12,588.28,0.28614132]
[1743932167039,0.58133214,589.11,588.28,0.28614132]
[1743932167239,0.58133214,589.1,588.29,0.28610535]
[1743932167534,0.58137046,589.09,588.29,0.28610535]
[1743932167739,0.58137046,589.08,588.29,0.28610535]
[1743932167943,0.58137046,589.07,588.29,0.28610535]
[1743932168146,0.58138089,589.06,588.29,0.28610535]
[1743932168341,0.58138089,589.05,588.3,0.2861114]
[1743932168539,0.29543728,589.25,588.29,0.2861114]
[1743932168844,0.58139953,589.24,588.29,0.2861114]
[1743932169040,0.58139953,589.23,588.29,0.2861114]
[1743932169244,0.58139953,589.22,588.29,0.2861114]
[1743932169444,0.58139953,589.21,588.29,0.2861114]
[1743932169645,0.58139953,589.2,588.29,0.2861114]
[1743932169944,0.58139953,589.19,588.35,1.26919122]
[1743932170146,0.58139953,589.18,588.36,0.28607678]
[1743932170346,0.58139953,589.17,588.36,0.28607678]
[1743932170540,0.58139953,589.16,588.36,0.28607678]
[1743932170743,0.58139953,589.15,588.36,0.28607678]
[1743932170944,0.58139953,589.14,588.36,0.28607678]
[1743932171143,0.58139953,589.13,588.36,0.28607678]
[1743932171345,0.58139953,589.12,588.36,0.28607678]
[1743932171645,0.58139953,589.11,588.36,0.28607678]
[1743932171841,0.58148787,589.24,588.36,0.28607678]
[1743932172045,0.58148787,589.23,588.36,0.28607678]
[1743932172245,0.58148787,589.22,588.36,0.28607678]
[1743932172442,0.58148787,589.21,588.36,0.28607678]
[1743932172643,0.58148787,589.2,588.34,0.28607678]
[1743932172846,0.58148787,589.19,588.34,0.28607678]
[1743932173146,0.58148787,589.18,588.34,0.28607678]
[1743932173347,0.58148787,589.17,588.34,0.28607678]
[1743932173542,0.58148787,589.16,588.34,0.28607678]
[1743932173746,0.58148787,589.15,588.34,0.28607678]
[1743932173947,0.58148787,589.14,588.34,0.28607678]
[1743932174146,0.58148787,589.13,588.34,0.28607678]
[1743932174348,0.58148787,589.12,588.34,0.28607678]
[1743932174548,0.58148787,589.11,588.34,0.28607678]
[1743932174749,0.58148787,589.1,588.34,0.28607678]
[1743932174950,0.29544731,589.25,588.35,1.26919122]
[1743932175145,0.58160484,589.24,588.36,0.28607678]
[1743932175347,0.29544731,589.25,588.36,0.28607678]
[1743932175348,0.58160484,589.23,588.36,0.28607678]
[1743932175543,0.58160484,589.22,588.36,0.28607678]
[1743932175748,0.58160484,589.21,588.36,0.28607678]
[1743932176048,0.58160484,589.2,588.36,0.28607678]
[1743932176248,0.58160484,589.19,588.36,0.28607678]
[1743932176446,0.58160484,589.18,588.36,0.28607678]
[1743932176646,0.58160484,589.17,588.36,0.28607678]
[1743932176946,0.58160484,589.16,588.36,0.28607678]
[1743932177148,0.58160484,589.15,588.38,1.26919122]
[1743932177350,0.58160484,589.14,588.39,0.28606816]
[1743932177546,0.58160484,589.13,588.39,0.28606816]
[1743932177850,0.58160484,589.12,588.39,0.28606816]
[1743932178050,0.58160484,589.11,588.39,0.28606816]
[1743932178346,0.58181442,589.1,588.39,0.28606816]
[1743932178550,0.58181442,589.09,588.39,0.28606816]
[1743932178750,0.58181442,589.08,588.39,0.28606816]
[1743932178945,0.58181442,589.07,588.39,0.28606816]
[1743932179150,0.58181442,589.06,588.39,0.28606816]
[1743932179352,0.58181442,589.05,588.39,0.28606816]
[1743932179551,0.2954448,589.25,588.39,0.28606816]
[1743932179751,0.58188743,589.24,588.39,0.28606816]
[1743932179950,0.58188743,589.23,588.39,0.28606816]
[1743932180151,0.58191093,589.22,588.39,0.28606816]
[1743932180356,0.58191093,589.21,588.39,0.28606816]
[1743932180557,0.58191093,589.2,588.39,0.28606816]
[1743932180747,0.58191093,589.19,588.39,0.28606816]
[1743932180952,0.58191093,589.18,588.39,0.28606816]
[1743932181254,0.58191093,589.17,588.4,0.28606816]
[1743932181448,0.58191093,589.16,588.35,0.28606816]
[1743932181646,0.58191093,589.15,588.35,0.28606816]
[1743932181850,0.58191093,589.14,588.35,0.28606816]
[1743932182052,0.58194136,589.13,588.35,0.28606816]
[1743932182252,0.58194136,589.12,588.35,0.28606816]
[1743932182453,0.58194136,589.11,588.34,0.58151547]
[1743932182653,0.58194136,589.1,588.35,0.28606816]
[1743932182853,0.58194136,589.09,588.35,0.28606816]
[1743932183055,0.58194136,589.24,588.38,1.26919122]
[1743932183353,0.58194136,589.23,588.39,0.28606816]
[1743932183549,0.58194136,589.22,588.39,0.28606816]
[1743932183748,0.58199234,589.21,588.39,0.28606816]
[1743932183948,0.58199234,589.2,588.39,0.28606816]
[1743932184149,0.58199234,589.19,588.39,0.28606816]
[1743932184350,0.58199234,589.18,588.39,0.28606816]
[1743932184551,0.58199234,589.17,588.39,1.55525938]
[1743932184754,0.58199234,589.16,588.39,1.26919122]
[1743932184947,0.58199234,589.15,588.4,0.28604264]
[1743932185148,0.58199234,589.14,588.4,0.28604264]
[1743932185351,0.58199234,589.13,588.4,0.28604264]
[1743932185552,0.58199234,589.12,588.4,0.28604264]
[1743932185749,0.58199234,589.11,588.4,0.28604264]
[1743932185949,0.58204564,589.1,588.4,0.28604264]
[1743932186154,0.58204564,589.09,588.4,0.28604264]
[1743932186450,0.33933964,589.38,588.39,1.26919122]
[1743932186651,0.58205276,589.37,588.4,0.28605036]
[1743932186855,0.58205276,589.36,588.4,0.28605036]
[1743932187055,0.58205276,589.35,588.4,0.28605036]
[1743932187256,0.58205276,589.34,588.4,0.28605036]
[1743932187457,0.58205221,589.33,588.59,1.26919122]
[1743932187651,0.58205221,589.32,588.6,0.28605036]
[1743932187853,0.58205221,589.31,588.6,0.28605036]
[1743932188055,0.58205221,589.3,588.6,0.28605036]
[1743932188255,0.58205221,589.29,588.59,1.26919122]
[1743932188456,0.58205221,589.28,588.6,0.2860176]
[1743932188653,0.58205221,589.27,588.59,1.26919122]
[1743932188853,0.58205221,589.26,588.59,1.26919122]
[1743932189054,0.58205221,589.25,588.6,0.28591734]
[1743932189356,0.58205221,589.24,588.6,0.28591734]
[1743932189552,0.58205221,589.23,588.6,0.28591734]
[1743932189754,0.58205221,589.22,588.6,0.28591734]
[1743932189956,0.58182132,589.21,588.6,0.28591734]
[1743932190153,0.29537835,589.33,588.51,0.28591734]
[1743932190354,0.5816997,589.32,588.51,0.28591734]
[1743932190555,0.5816997,589.31,588.51,0.28591734]
[1743932190754,0.5816997,589.3,588.51,0.28591734]
[1743932190952,0.5816997,589.29,588.51,0.28591734]
[1743932191154,0.58169742,589.28,588.51,0.28591734]
[1743932191352,0.58169742,589.27,588.51,0.28591734]
[1743932191555,0.58169742,589.26,588.52,0.28587027]
[1743932191856,0.58169742,589.25,588.51,0.28587027]
[1743932192056,0.58169742,589.24,588.52,0.28587027]
[1743932192256,0.58169742,589.23,588.49,0.28587027]
[1743932192453,0.33933964,589.38,588.5,0.28587027]
[1743932192454,0.58169742,589.22,588.5,0.28587027]
[1743932192658,0.58169742,589.21,588.51,0.28587027]
[1743932192953,0.58169742,589.2,588.52,0.28587027]
[1743932193159,0.58169742,589.19,588.49,0.28587027]
[1743932193357,0.58169742,589.18,588.49,0.28587027]
[1743932193555,0.58169742,589.17,588.49,0.28587027]
[1743932193758,0.63471673,589.38,588.49,0.28587027]
[1743932194053,0.5814052,589.37,588.49,0.28587027]
[1743932194254,0.5814052,589.36,588.49,0.28587027]
[1743932194459,0.5814052,589.35,588.49,0.28587027]
[1743932194654,0.63471924,589.38,588.49,0.28587027]
[1743932194852,0.58132755,589.37,588.5,0.28590422]
[1743932195057,0.58132755,589.36,588.49,0.28590422]
[1743932195259,0.58132755,589.35,588.5,0.28590422]
[1743932195457,0.58132755,589.34,588.49,0.28590422]
[1743932195656,0.58132755,589.33,588.49,0.28590422]
[1743932195853,0.58132755,589.32,588.49,0.28590422]
[1743932196054,0.58132755,589.31,588.47,0.28590422]
[1743932196256,0.58132755,589.3,588.47,0.28590422]
[1743932196456,0.58132755,589.29,588.47,0.28590422]
[1743932196655,0.58132755,589.28,588.47,0.28590422]
[1743932196856,0.58132755,589.27,588.47,0.28590422]
[1743932197057,0.58132755,589.26,588.46,0.2953796]
[1743932197355,0.58132755,589.25,588.47,0.2859076]
[1743932197559,0.58132755,589.24,588.46,0.29538587]
[1743932197758,0.58132755,589.23,588.47,0.2859076]
[1743932197958,0.58132755,589.22,588.47,0.2859076]
[1743932198158,0.58132755,589.37,588.47,0.2859076]
[1743932198358,0.58132755,589.36,588.47,0.2859076]
[1743932198556,0.58132755,589.35,588.47,0.2859076]
[1743932198758,0.58132755,589.34,588.47,0.2859076]
[1743932198957,0.58132755,589.33,588.47,0.2859076]
[1743932199161,0.58132755,589.32,588.47,0.2859076]
[1743932199361,0.58132755,589.31,588.47,0.2859076]
[1743932199562,0.58132755,589.3,588.47,0.2859076]
[1743932199763,0.58132755,589.29,588.46,0.29538587]
[1743932199958,0.58132755,589.28,588.47,0.28586145]
[1743932200262,0.58095709,589.37,588.47,0.28586145]
[1743932200562,0.58095709,589.36,588.48,0.28586145]
[1743932200762,0.58095709,589.35,588.47,0.28586145]
[1743932200962,0.58095709,589.34,588.48,0.28586145]
[1743932201163,0.58087362,589.33,588.47,0.28586145]
[1743932201464,0.58087362,589.32,588.47,0.28586145]
[1743932201658,0.58087362,589.31,588.47,0.28586145]
[1743932201860,0.58087362,589.3,588.47,0.28586145]
[1743932202057,0.58087362,589.29,588.46,0.29538712]
[1743932202256,0.58087362,589.37,588.47,0.28585391]
[1743932202463,0.63472676,589.38,588.47,0.28585391]
[1743932202464,0.58087362,589.36,588.49,1.26919122]
[1743932202660,0.58087362,589.35,588.5,0.28585391]
[1743932202858,0.58087362,589.34,588.5,0.28585391]